[Event "*** Titled Tuesday 3|2 Blitz"]
[Site "Chess.com"]
[Date "2016.05.03"]
[Round "3"]
[White "gmjoey1"]
[Black "rookoco"]
[Result "0-1"]
[WhiteElo "2521"]
[BlackElo "2443"]
[TimeControl "180+2"]
[EndTime "17:39:00 PDT"]
[Termination "rookoco won by resignation"]

1. e4 {[%clk 0:03:01.9]} 1... e5 {[%clk 0:03:00.3]} 2. Nf3 {[%clk 0:03:02.1]}
2... Nc6 {[%clk 0:03:01.4]} 3. Bb5 {[%clk 0:03:02.6]} 3... a6 {[%clk 0:03:01.5]}
4. Ba4 {[%clk 0:03:03.5]} 4... Nf6 {[%clk 0:03:02.4]} 5. d3 {[%clk 0:03:04.4]}
5... d6 {[%clk 0:03:02.9]} 6. O-O {[%clk 0:03:05.1]} 6... g6 {[%clk 0:03:04.2]}
7. d4 {[%clk 0:03:01.4]} 7... Bd7 {[%clk 0:03:04.1]} 8. c3 {[%clk 0:02:53.9]}
8... Bg7 {[%clk 0:03:03.9]} 9. Re1 {[%clk 0:02:54.8]} 9... O-O {[%clk
0:03:03.8]} 10. h3 {[%clk 0:02:55.2]} 10... Qe8 {[%clk 0:03:00.8]} 11. Bb3
{[%clk 0:02:52.5]} 11... Kh8 {[%clk 0:02:50.4]} 12. Nbd2 {[%clk 0:02:49.9]}
12... Nh5 {[%clk 0:02:45.8]} 13. Nf1 {[%clk 0:02:49]} 13... Nd8 {[%clk
0:02:41.4]} 14. g4 {[%clk 0:02:45.9]} 14... Nf6 {[%clk 0:02:40.2]} 15. Ng3
{[%clk 0:02:46.5]} 15... h6 {[%clk 0:02:35.7]} 16. Be3 {[%clk 0:02:45.8]} 16...
Nh7 {[%clk 0:02:35.8]} 17. Qd2 {[%clk 0:02:45.7]} 17... h5 {[%clk 0:02:35]} 18.
gxh5 {[%clk 0:02:44.1]} 18... Bxh3 {[%clk 0:02:34.8]} 19. Bh6 {[%clk 0:02:26.3]}
19... Bg4 {[%clk 0:02:32.2]} 20. Bxg7+ {[%clk 0:02:21.4]} 20... Kxg7 {[%clk
0:02:32.6]} 21. h6+ {[%clk 0:02:21.6]} 21... Kh8 {[%clk 0:02:32.8]} 22. Nh2
{[%clk 0:02:22.3]} 22... Bh3 {[%clk 0:02:30.4]} 23. f4 {[%clk 0:02:22.3]} 23...
Ne6 {[%clk 0:02:24.7]} 24. fxe5 {[%clk 0:02:19.5]} 24... dxe5 {[%clk 0:02:24.6]}
25. dxe5 {[%clk 0:02:18.1]} 25... Rd8 {[%clk 0:02:23.8]} 26. Qe3 {[%clk
0:02:18]} 26... Qb5 {[%clk 0:02:20]} 27. Nf3 {[%clk 0:02:04.4]} 27... Bg4 {[%clk
0:02:19]} 28. Bd5 {[%clk 0:01:18.4]} 28... c6 {[%clk 0:02:11.7]} 29. a4 {[%clk
0:01:17.6]} 29... Qa5 {[%clk 0:02:10.9]} 30. Bxe6 {[%clk 0:01:09.8]} 30... Bxe6
{[%clk 0:01:58.1]} 31. Qf4 {[%clk 0:01:04.9]} 31... Qb6+ {[%clk 0:01:49.7]} 32.
Kh1 {[%clk 0:01:01.5]} 32... Qxb2 {[%clk 0:01:46.8]} 33. Ng5 {[%clk 0:00:56.1]}
33... Rd2 {[%clk 0:01:41.5]} 34. Nf1 {[%clk 0:00:39.9]} 34... Rf2 {[%clk
0:01:40]} 35. Qh4 {[%clk 0:00:41.2]} 35... Nxg5 {[%clk 0:01:24.5]} 36. Qxg5
{[%clk 0:00:41.6]} 36... Qxc3 {[%clk 0:01:15.1]} 37. Ne3 {[%clk 0:00:36.4]}
37... Qd2 {[%clk 0:00:55.4]} 38. Rf1 {[%clk 0:00:36.4]} 38... Rh2+ {[%clk
0:00:49.3]} 39. Kg1 {[%clk 0:00:37.2]} 39... Kh7 {[%clk 0:00:47.3]} 40. Rad1
{[%clk 0:00:36.7]} 40... Qe2 {[%clk 0:00:39.8]} 41. Rde1 {[%clk 0:00:37.6]}
41... Qh5 {[%clk 0:00:39.7]} 42. Qxh5 {[%clk 0:00:38.6]} 42... Rxh5 {[%clk
0:00:40.3]} 43. a5 {[%clk 0:00:40.4]} 43... Rxe5 {[%clk 0:00:38.9]} 44. Rb1
{[%clk 0:00:41.8]} 44... Bc8 {[%clk 0:00:39.9]} 45. Nc4 {[%clk 0:00:41.6]} 45...
Rxe4 {[%clk 0:00:40.2]} 46. Nd6 {[%clk 0:00:42.4]} 46... Re7 {[%clk 0:00:41.9]}
47. Rbe1 {[%clk 0:00:40.5]} 47... Be6 {[%clk 0:00:38.7]} 48. Rb1 {[%clk
0:00:38.2]} 48... Kxh6 {[%clk 0:00:36.2]} 49. Nxb7 {[%clk 0:00:38.3]} 49... Rb8
{[%clk 0:00:35.8]} 50. Nc5 {[%clk 0:00:39]} 50... Rxb1 {[%clk 0:00:36.3]} 51.
Rxb1 {[%clk 0:00:40.9]} 51... Bc4 {[%clk 0:00:37.7]} 52. Rb6 {[%clk 0:00:42.4]}
52... Bb5 {[%clk 0:00:37]} 53. Nxa6 {[%clk 0:00:42.7]} 53... Ra7 {[%clk
0:00:37.8]} 54. Nb8 {[%clk 0:00:43.7]} 54... Rxa5 {[%clk 0:00:38.3]} 55. Kf2
{[%clk 0:00:43.8]} 55... f5 {[%clk 0:00:38]} 56. Ke3 {[%clk 0:00:41.2]} 56...
Kg5 {[%clk 0:00:38.8]} 57. Nd7 {[%clk 0:00:38.3]} 57... Ra3+ {[%clk 0:00:39.1]}
58. Kd4 {[%clk 0:00:39.2]} 58... Rd3+ {[%clk 0:00:39.7]} 59. Kc5 {[%clk
0:00:38.6]} 59... Rxd7 {[%clk 0:00:39.8]} 60. Rb8 {[%clk 0:00:40.5]} 60... f4
{[%clk 0:00:40.6]} 61. Rf8 {[%clk 0:00:40.8]} 61... Rd5+ {[%clk 0:00:41.5]} 62.
Kb4 {[%clk 0:00:41.2]} 62... Rf5 {[%clk 0:00:43.1]} 63. Kc3 {[%clk 0:00:43.1]}
63... Rxf8 {[%clk 0:00:43.8]} 0-1

[Event "*** Titled Tuesday 3|2 Blitz"]
[Site "Chess.com"]
[Date "2016.05.03"]
[Round "3"]
[White "GrigorGrigorov"]
[Black "HansCoolNiemann"]
[Result "0-1"]
[WhiteElo "2524"]
[BlackElo "2290"]
[TimeControl "180+2"]
[EndTime "17:39:08 PDT"]
[Termination "HansCoolNiemann won on time"]

1. Nf3 {[%clk 0:03:01.9]} 1... c5 {[%clk 0:02:58.3]} 2. e3 {[%clk 0:03:00.6]}
2... Nc6 {[%clk 0:02:56]} 3. c4 {[%clk 0:02:59]} 3... Nf6 {[%clk 0:02:49.8]} 4.
Nc3 {[%clk 0:02:58.4]} 4... d5 {[%clk 0:02:49.4]} 5. cxd5 {[%clk 0:02:52.4]}
5... Nxd5 {[%clk 0:02:51.3]} 6. Bc4 {[%clk 0:02:49.2]} 6... e6 {[%clk
0:02:42.7]} 7. d4 {[%clk 0:02:49]} 7... Nb6 {[%clk 0:02:37.8]} 8. Bd3 {[%clk
0:02:45.8]} 8... cxd4 {[%clk 0:02:37.3]} 9. exd4 {[%clk 0:02:46.5]} 9... Be7
{[%clk 0:02:37.4]} 10. a3 {[%clk 0:02:45]} 10... O-O {[%clk 0:02:36.3]} 11. O-O
{[%clk 0:02:42.1]} 11... Bf6 {[%clk 0:02:35.4]} 12. Be3 {[%clk 0:02:42.2]} 12...
Nd5 {[%clk 0:02:34.4]} 13. Rc1 {[%clk 0:02:28.9]} 13... Bd7 {[%clk 0:02:27.8]}
14. Nxd5 {[%clk 0:02:26.2]} 14... exd5 {[%clk 0:02:27.3]} 15. Bb1 {[%clk
0:02:15.4]} 15... Bg4 {[%clk 0:02:20.3]} 16. Rc5 {[%clk 0:02:03.6]} 16... Qd6
{[%clk 0:02:08.3]} 17. h3 {[%clk 0:01:33.7]} 17... Bh5 {[%clk 0:01:48.2]} 18. g4
{[%clk 0:01:33.6]} 18... Bg6 {[%clk 0:01:47.8]} 19. Qb3 {[%clk 0:01:16]} 19...
Be4 {[%clk 0:01:33.8]} 20. Bxe4 {[%clk 0:01:04.9]} 20... dxe4 {[%clk 0:01:32.6]}
21. Qxb7 {[%clk 0:01:04.9]} 21... Nxd4 {[%clk 0:01:20.7]} 22. Bxd4 {[%clk
0:00:29.1]} 22... Bxd4 {[%clk 0:01:18]} 23. Nxd4 {[%clk 0:00:18.5]} 23... Qxc5
{[%clk 0:01:16.2]} 24. Nf5 {[%clk 0:00:18.8]} 24... g6 {[%clk 0:01:05.7]} 25.
Ne3 {[%clk 0:00:17.5]} 25... Rab8 {[%clk 0:00:58.1]} 26. Qxe4 {[%clk 0:00:17.6]}
26... Rfe8 {[%clk 0:00:57.7]} 27. Qf4 {[%clk 0:00:15.7]} 27... Qe5 {[%clk
0:00:51.8]} 28. Qxe5 {[%clk 0:00:13.9]} 28... Rxe5 {[%clk 0:00:51.1]} 29. Rd1
{[%clk 0:00:13.9]} 29... Re7 {[%clk 0:00:45.4]} 30. b4 {[%clk 0:00:14.4]} 30...
Rc7 {[%clk 0:00:45.4]} 31. Nd5 {[%clk 0:00:13.2]} 31... Rc4 {[%clk 0:00:41]} 32.
Rd3 {[%clk 0:00:10.9]} 32... Kg7 {[%clk 0:00:39.5]} 33. Ne3 {[%clk 0:00:10.7]}
33... Re4 {[%clk 0:00:37.6]} 34. Kg2 {[%clk 0:00:11.3]} 34... Rbe8 {[%clk
0:00:32.9]} 35. Kf3 {[%clk 0:00:10.2]} 35... R4e7 {[%clk 0:00:33]} 36. Rd5
{[%clk 0:00:10.6]} 36... Rc7 {[%clk 0:00:32.8]} 37. a4 {[%clk 0:00:09.5]} 37...
Rb8 {[%clk 0:00:14.5]} 38. b5 {[%clk 0:00:10.5]} 38... Rbb7 {[%clk 0:00:10.7]}
39. Rd6 {[%clk 0:00:09]} 39... Rc5 {[%clk 0:00:06.7]} 40. Ra6 {[%clk 0:00:09.4]}
40... Re5 {[%clk 0:00:06.2]} 41. Nc2 {[%clk 0:00:09.1]} 41... Rd7 {[%clk
0:00:05.2]} 42. Ne3 {[%clk 0:00:08]} 42... Rc5 {[%clk 0:00:02.6]} 43. Ke4 {[%clk
0:00:04.8]} 43... Rc3 {[%clk 0:00:02.9]} 44. g5 {[%clk 0:00:02.1]} 44... Rb3
{[%clk 0:00:03.3]} 0-1

[Event "*** Titled Tuesday 3|2 Blitz"]
[Site "Chess.com"]
[Date "2016.05.03"]
[Round "3"]
[White "chorejason"]
[Black "FearNoEvil12"]
[Result "0-1"]
[WhiteElo "2030"]
[BlackElo "1952"]
[TimeControl "180+2"]
[EndTime "17:39:24 PDT"]
[Termination "FearNoEvil12 won by resignation"]

1. e4 {[%clk 0:03:01.9]} 1... c5 {[%clk 0:02:56]} 2. d4 {[%clk 0:03:02.6]} 2...
cxd4 {[%clk 0:02:55.6]} 3. Nf3 {[%clk 0:03:04]} 3... Nc6 {[%clk 0:02:54.4]} 4.
Nxd4 {[%clk 0:03:04.7]} 4... d6 {[%clk 0:02:48.9]} 5. Nc3 {[%clk 0:03:04.6]}
5... Nf6 {[%clk 0:02:47.8]} 6. Bc4 {[%clk 0:03:04.9]} 6... e6 {[%clk 0:02:45.8]}
7. O-O {[%clk 0:03:05.2]} 7... Be7 {[%clk 0:02:45.6]} 8. Bb3 {[%clk 0:03:06.5]}
8... O-O {[%clk 0:02:44.2]} 9. Be3 {[%clk 0:03:06.6]} 9... a6 {[%clk 0:02:43.9]}
10. a4 {[%clk 0:03:06.4]} 10... Qc7 {[%clk 0:02:40.1]} 11. f4 {[%clk 0:03:06.2]}
11... e5 {[%clk 0:02:37]} 12. Nde2 {[%clk 0:02:58.9]} 12... exf4 {[%clk
0:02:35.6]} 13. Nxf4 {[%clk 0:02:58.1]} 13... Ne5 {[%clk 0:02:36.1]} 14. Nfd5
{[%clk 0:02:54.7]} 14... Nxd5 {[%clk 0:02:34.1]} 15. Nxd5 {[%clk 0:02:55.4]}
15... Qd8 {[%clk 0:02:35.3]} 16. h3 {[%clk 0:02:34.6]} 16... Bg5 {[%clk
0:02:31.9]} 17. Bb6 {[%clk 0:02:21.8]} 17... Qd7 {[%clk 0:02:24.6]} 18. Qh5
{[%clk 0:02:17.6]} 18... h6 {[%clk 0:02:20.8]} 19. Bd4 {[%clk 0:02:08.4]} 19...
Qc6 {[%clk 0:02:04]} 20. Bxe5 {[%clk 0:01:01.5]} 20... dxe5 {[%clk 0:02:02.4]}
21. Rxf7 {[%clk 0:00:50.9]} 21... Rxf7 {[%clk 0:01:37.2]} 22. Ne7+ {[%clk
0:00:51.4]} 22... Bxe7 {[%clk 0:01:33.5]} 23. Qxf7+ {[%clk 0:00:52.2]} 23... Kh7
{[%clk 0:01:33.6]} 24. Qxe7 {[%clk 0:00:42.9]} 24... Bd7 {[%clk 0:01:31.4]} 25.
Bd5 {[%clk 0:00:37.3]} 25... Re8 {[%clk 0:01:19.2]} 26. Qf7 {[%clk 0:00:27.6]}
26... Qc5+ {[%clk 0:01:08.3]} 27. Kh2 {[%clk 0:00:28.2]} 27... Qe7 {[%clk
0:01:06.8]} 28. Qxe7 {[%clk 0:00:24.8]} 28... Rxe7 {[%clk 0:01:06.5]} 29. Rf1
{[%clk 0:00:25.9]} 29... Be6 {[%clk 0:01:02.3]} 30. Bxe6 {[%clk 0:00:25.2]}
30... Rxe6 {[%clk 0:01:03.2]} 31. Rf7 {[%clk 0:00:26.8]} 31... Rb6 {[%clk
0:01:03.6]} 32. b3 {[%clk 0:00:28.3]} 32... Rb4 {[%clk 0:01:03.4]} 33. Re7
{[%clk 0:00:27.7]} 33... Rxe4 {[%clk 0:01:01.9]} 34. Rxb7 {[%clk 0:00:28.9]}
34... Re2 {[%clk 0:01:00.6]} 35. c4 {[%clk 0:00:29.5]} 35... e4 {[%clk
0:01:00.6]} 36. Re7 {[%clk 0:00:30.1]} 36... Kg6 {[%clk 0:01:00.2]} 37. Kg3
{[%clk 0:00:31.4]} 37... Kf6 {[%clk 0:01:00.7]} 38. Re8 {[%clk 0:00:32.9]} 38...
Kf5 {[%clk 0:00:59.6]} 39. c5 {[%clk 0:00:33]} 39... Re3+ {[%clk 0:00:59.9]} 40.
Kf2 {[%clk 0:00:33.2]} 40... Rxb3 {[%clk 0:01:00.4]} 41. c6 {[%clk 0:00:34.6]}
41... Rc3 {[%clk 0:01:01.2]} 42. Rc8 {[%clk 0:00:35.7]} 42... Kf4 {[%clk
0:00:55.6]} 43. c7 {[%clk 0:00:36.9]} 43... Rc2+ {[%clk 0:00:55.7]} 44. Ke1
{[%clk 0:00:36.7]} 44... Kg3 {[%clk 0:00:56.9]} 45. Kd1 {[%clk 0:00:36]} 45...
Rc6 {[%clk 0:00:55.4]} 46. Kd2 {[%clk 0:00:34.7]} 46... Kxg2 {[%clk 0:00:54.7]}
47. Ke3 {[%clk 0:00:36.2]} 47... Kxh3 {[%clk 0:00:54.8]} 48. Kxe4 {[%clk
0:00:37.7]} 48... g5 {[%clk 0:00:53.7]} 49. Kd5 {[%clk 0:00:39.1]} 49... Rc1
{[%clk 0:00:51.2]} 50. Kd6 {[%clk 0:00:40.6]} 50... h5 {[%clk 0:00:49.2]} 51.
Rh8 {[%clk 0:00:41.5]} 51... h4 {[%clk 0:00:48.7]} 52. c8=Q+ {[%clk 0:00:38.1]}
52... Rxc8 {[%clk 0:00:49.6]} 53. Rxc8 {[%clk 0:00:40]} 53... g4 {[%clk
0:00:50.2]} 54. Ke5 {[%clk 0:00:41.3]} 54... g3 {[%clk 0:00:50.8]} 55. Rg8
{[%clk 0:00:18.1]} 55... g2 {[%clk 0:00:49.3]} 56. Kf4 {[%clk 0:00:19.5]} 56...
Kh2 {[%clk 0:00:50]} 57. Rh8 {[%clk 0:00:12.1]} 57... h3 {[%clk 0:00:47.5]} 58.
Rg8 {[%clk 0:00:10.9]} 58... g1=Q {[%clk 0:00:47.4]} 59. Rxg1 {[%clk 0:00:12.5]}
59... Kxg1 {[%clk 0:00:48.1]} 60. Ke5 {[%clk 0:00:14.4]} 60... h2 {[%clk
0:00:49]} 61. Kd5 {[%clk 0:00:16.3]} 61... h1=Q+ {[%clk 0:00:50.1]} 62. Kc5
{[%clk 0:00:18.2]} 62... Qh6 {[%clk 0:00:50.5]} 0-1

[Event "*** Titled Tuesday 3|2 Blitz"]
[Site "Chess.com"]
[Date "2016.05.03"]
[Round "3"]
[White "Mischuk_D"]
[Black "Boryboy"]
[Result "1/2-1/2"]
[WhiteElo "2438"]
[BlackElo "2534"]
[TimeControl "180+2"]
[EndTime "17:39:52 PDT"]
[Termination "Game drawn - insufficient material"]

1. e4 {[%clk 0:02:50.4]} 1... e6 {[%clk 0:03:01.9]} 2. d4 {[%clk 0:02:50.7]}
2... d5 {[%clk 0:03:02.6]} 3. Bd3 {[%clk 0:02:52.4]} 3... dxe4 {[%clk
0:03:01.5]} 4. Bxe4 {[%clk 0:02:54.3]} 4... Nf6 {[%clk 0:03:01.1]} 5. Bf3 {[%clk
0:02:55.3]} 5... c5 {[%clk 0:02:56.6]} 6. Be3 {[%clk 0:02:55]} 6... Nd5 {[%clk
0:02:51.5]} 7. Ne2 {[%clk 0:02:47.6]} 7... Nxe3 {[%clk 0:02:51.4]} 8. fxe3
{[%clk 0:02:48.2]} 8... Be7 {[%clk 0:02:53]} 9. O-O {[%clk 0:02:47.4]} 9... O-O
{[%clk 0:02:54.2]} 10. Nbc3 {[%clk 0:02:46.4]} 10... a6 {[%clk 0:02:54.8]} 11.
Ne4 {[%clk 0:02:39.7]} 11... cxd4 {[%clk 0:02:43.8]} 12. exd4 {[%clk 0:02:39.6]}
12... Nc6 {[%clk 0:02:43.6]} 13. c3 {[%clk 0:02:40.2]} 13... Qc7 {[%clk
0:02:44.9]} 14. Qe1 {[%clk 0:02:30.7]} 14... b6 {[%clk 0:02:42]} 15. Qf2 {[%clk
0:02:19.6]} 15... Bb7 {[%clk 0:02:41.8]} 16. N2g3 {[%clk 0:02:18.5]} 16... Rad8
{[%clk 0:02:07.7]} 17. Bh5 {[%clk 0:02:19]} 17... f5 {[%clk 0:02:01.2]} 18. Nd2
{[%clk 0:02:17.8]} 18... g6 {[%clk 0:01:39]} 19. Bf3 {[%clk 0:02:16.6]} 19... e5
{[%clk 0:01:40.5]} 20. Nb3 {[%clk 0:02:03.2]} 20... exd4 {[%clk 0:01:40.5]} 21.
Bxc6 {[%clk 0:01:59.4]} 21... Bxc6 {[%clk 0:01:32.2]} 22. Nxd4 {[%clk
0:02:00.3]} 22... Bb7 {[%clk 0:01:32.1]} 23. Kh1 {[%clk 0:01:50.5]} 23... Bc5
{[%clk 0:01:25.6]} 24. Rad1 {[%clk 0:01:40.7]} 24... Rfe8 {[%clk 0:01:24.6]} 25.
Nge2 {[%clk 0:01:39.7]} 25... Qf7 {[%clk 0:01:22.8]} 26. Nf4 {[%clk 0:01:40.1]}
26... Qxa2 {[%clk 0:01:19.1]} 27. h4 {[%clk 0:01:38.3]} 27... Qf7 {[%clk
0:01:13.5]} 28. b4 {[%clk 0:01:38]} 28... Bf8 {[%clk 0:01:08.9]} 29. Qg3 {[%clk
0:01:34.2]} 29... Kh8 {[%clk 0:01:02.5]} 30. Rfe1 {[%clk 0:01:29.5]} 30... Rxe1+
{[%clk 0:01:02.4]} 31. Rxe1 {[%clk 0:01:30.2]} 31... Be4 {[%clk 0:01:01.8]} 32.
Nfe6 {[%clk 0:01:27.4]} 32... Re8 {[%clk 0:01:00.6]} 33. Nxf8 {[%clk 0:01:24.8]}
33... Qxf8 {[%clk 0:01:01.6]} 34. Kh2 {[%clk 0:01:24.5]} 34... a5 {[%clk
0:01:00.5]} 35. Qc7 {[%clk 0:01:22.1]} 35... axb4 {[%clk 0:00:59.1]} 36. cxb4
{[%clk 0:01:22.3]} 36... Qxb4 {[%clk 0:00:57.5]} 37. Qd7 {[%clk 0:00:51.6]}
37... Qe7 {[%clk 0:00:54.5]} 38. Qxe7 {[%clk 0:00:50.2]} 38... Rxe7 {[%clk
0:00:56.4]} 39. Re3 {[%clk 0:00:50.3]} 39... Rd7 {[%clk 0:00:57]} 40. Ne6 {[%clk
0:00:49.2]} 40... Rd2 {[%clk 0:00:58]} 41. Rb3 {[%clk 0:00:46.5]} 41... Rxg2+
{[%clk 0:00:51.2]} 42. Kh3 {[%clk 0:00:46.7]} 42... Rc2 {[%clk 0:00:20.5]} 43.
Rxb6 {[%clk 0:00:47.2]} 43... Kg8 {[%clk 0:00:20.1]} 44. Rb8+ {[%clk 0:00:39.7]}
44... Kf7 {[%clk 0:00:21.3]} 45. Ng5+ {[%clk 0:00:40.8]} 45... Kf6 {[%clk
0:00:22.9]} 46. Nxh7+ {[%clk 0:00:40.8]} 46... Ke5 {[%clk 0:00:24.1]} 47. Ng5
{[%clk 0:00:39.6]} 47... Kf4 {[%clk 0:00:24.4]} 48. Ne6+ {[%clk 0:00:39.2]}
48... Ke3 {[%clk 0:00:24.9]} 49. Rf8 {[%clk 0:00:34.2]} 49... Rc1 {[%clk
0:00:23]} 50. Ng5 {[%clk 0:00:15]} 50... Rh1+ {[%clk 0:00:20]} 51. Kg3 {[%clk
0:00:16.1]} 51... f4+ {[%clk 0:00:17.7]} 52. Rxf4 {[%clk 0:00:16]} 52... Rg1+
{[%clk 0:00:19.3]} 53. Kh2 {[%clk 0:00:17.2]} 53... Rg2+ {[%clk 0:00:20.9]} 54.
Kh3 {[%clk 0:00:18.3]} 54... Kxf4 {[%clk 0:00:21.3]} 55. Nxe4 {[%clk 0:00:20]}
55... Rg3+ {[%clk 0:00:22.8]} 56. Nxg3 {[%clk 0:00:20.1]} 56... Kf3 {[%clk
0:00:21.1]} 57. Nf1 {[%clk 0:00:19.9]} 57... Kf4 {[%clk 0:00:22.3]} 58. Ng3
{[%clk 0:00:19.4]} 58... Kf3 {[%clk 0:00:23.8]} 59. Nf1 {[%clk 0:00:18]} 59...
Kf4 {[%clk 0:00:25.2]} 60. Nd2 {[%clk 0:00:19.3]} 60... Ke3 {[%clk 0:00:23.3]}
61. Nc4+ {[%clk 0:00:19.8]} 61... Kf4 {[%clk 0:00:24.9]} 62. Nd6 {[%clk
0:00:20.8]} 62... g5 {[%clk 0:00:25.2]} 63. h5 {[%clk 0:00:21.2]} 63... g4+
{[%clk 0:00:26.9]} 64. Kh4 {[%clk 0:00:22.3]} 64... g3 {[%clk 0:00:28.8]} 65.
Kh3 {[%clk 0:00:20.3]} 65... Kg5 {[%clk 0:00:27.7]} 66. Ne8 {[%clk 0:00:19.7]}
66... g2 {[%clk 0:00:25.8]} 67. Kxg2 {[%clk 0:00:20.7]} 67... Kxh5 {[%clk
0:00:27.2]} 1/2-1/2

[Event "*** Titled Tuesday 3|2 Blitz"]
[Site "Chess.com"]
[Date "2016.05.03"]
[Round "3"]
[White "DiamondCrusher22"]
[Black "dsanchez1973"]
[Result "1-0"]
[WhiteElo "1949"]
[BlackElo "2009"]
[TimeControl "180+2"]
[EndTime "17:41:03 PDT"]
[Termination "DiamondCrusher22 won by resignation"]

1. e4 {[%clk 0:03:01.9]} 1... e6 {[%clk 0:03:00.7]} 2. d4 {[%clk 0:03:01.8]}
2... d5 {[%clk 0:03:02.3]} 3. Nd2 {[%clk 0:03:01.2]} 3... Be7 {[%clk 0:03:02.7]}
4. Bd3 {[%clk 0:02:58.7]} 4... c5 {[%clk 0:03:02.4]} 5. c3 {[%clk 0:02:58]} 5...
cxd4 {[%clk 0:03:01.8]} 6. cxd4 {[%clk 0:02:57.8]} 6... Nc6 {[%clk 0:02:59.7]}
7. Ngf3 {[%clk 0:02:56.8]} 7... Nf6 {[%clk 0:03:00.8]} 8. e5 {[%clk 0:02:56.7]}
8... Nd7 {[%clk 0:03:01.8]} 9. O-O {[%clk 0:02:57.3]} 9... g5 {[%clk 0:03:02.9]}
10. Nb3 {[%clk 0:02:46.3]} 10... g4 {[%clk 0:03:00.8]} 11. Ne1 {[%clk
0:02:46.8]} 11... h5 {[%clk 0:03:00.9]} 12. Be3 {[%clk 0:02:35.1]} 12... Qb6
{[%clk 0:02:45.4]} 13. Nc2 {[%clk 0:02:30.3]} 13... a5 {[%clk 0:02:43.1]} 14.
Rb1 {[%clk 0:02:10.7]} 14... a4 {[%clk 0:02:43.7]} 15. Nc1 {[%clk 0:02:11.3]}
15... Rg8 {[%clk 0:01:55.8]} 16. Ne2 {[%clk 0:02:05.3]} 16... h4 {[%clk
0:01:54.4]} 17. g3 {[%clk 0:01:56.7]} 17... Nb4 {[%clk 0:01:36.6]} 18. Nxb4
{[%clk 0:01:51]} 18... Qxb4 {[%clk 0:01:37.6]} 19. Nf4 {[%clk 0:01:30.8]} 19...
Nb6 {[%clk 0:01:23.6]} 20. b3 {[%clk 0:01:22.5]} 20... Bd8 {[%clk 0:00:51.6]}
21. bxa4 {[%clk 0:01:05.8]} 21... Qe7 {[%clk 0:00:51.4]} 22. Nh5 {[%clk
0:00:57.5]} 22... Qc7 {[%clk 0:00:37.1]} 23. Be2 {[%clk 0:00:31]} 23... Nxa4
{[%clk 0:00:28.1]} 24. Bb5+ {[%clk 0:00:26.4]} 24... Bd7 {[%clk 0:00:29.2]} 25.
Qb3 {[%clk 0:00:23]} 25... Nb6 {[%clk 0:00:12.9]} 26. Rfc1 {[%clk 0:00:22.4]}
26... Nc4 {[%clk 0:00:12.5]} 27. Bxc4 {[%clk 0:00:21.7]} 27... dxc4 {[%clk
0:00:13.8]} 28. Rxc4 {[%clk 0:00:22.3]} 28... Qa5 {[%clk 0:00:14.5]} 29. Rc5
{[%clk 0:00:20.3]} 29... Qa6 {[%clk 0:00:14.9]} 30. Qxb7 {[%clk 0:00:19]} 30...
Qxa2 {[%clk 0:00:15]} 31. Rbc1 {[%clk 0:00:15.9]} 31... Ra7 {[%clk 0:00:14.1]}
32. Qe4 {[%clk 0:00:15.9]} 32... Qe2 {[%clk 0:00:14.5]} 33. Nf4 {[%clk
0:00:15.2]} 33... Qf3 {[%clk 0:00:14.9]} 34. Qxf3 {[%clk 0:00:15.3]} 34... gxf3
{[%clk 0:00:16.8]} 35. Kf1 {[%clk 0:00:15.4]} 35... hxg3 {[%clk 0:00:17.3]} 36.
fxg3 {[%clk 0:00:13.8]} 36... Be7 {[%clk 0:00:19.2]} 37. Rc7 {[%clk 0:00:10]}
37... Ra2 {[%clk 0:00:17.5]} 38. Rb7 {[%clk 0:00:07.7]} 38... Kf8 {[%clk
0:00:17.1]} 39. Rb8+ {[%clk 0:00:08.2]} 39... Kg7 {[%clk 0:00:18]} 40. Nh5+
{[%clk 0:00:09.5]} 40... Kh7 {[%clk 0:00:18.5]} 41. Rb7 {[%clk 0:00:10]} 41...
Bc6 {[%clk 0:00:19]} 42. Rxe7 {[%clk 0:00:10.6]} 42... Bb5+ {[%clk 0:00:20.3]}
43. Kg1 {[%clk 0:00:08.9]} 43... Rg2+ {[%clk 0:00:21.8]} 44. Kh1 {[%clk
0:00:09.9]} 44... Re2 {[%clk 0:00:22]} 45. Nf6+ {[%clk 0:00:10.7]} 45... Kg6
{[%clk 0:00:23]} 46. Nxg8 {[%clk 0:00:09.7]} 46... Rxe3 {[%clk 0:00:24.3]} 47.
Nf6 {[%clk 0:00:09.1]} 47... f2 {[%clk 0:00:23.9]} 48. Kg2 {[%clk 0:00:08.9]}
48... Re2 {[%clk 0:00:24.4]} 49. Rf1 {[%clk 0:00:08.7]} 49... Bc6+ {[%clk
0:00:25.6]} 50. Kh3 {[%clk 0:00:06.8]} 50... Bb5 {[%clk 0:00:22.2]} 51. Ng4
{[%clk 0:00:07.5]} 51... Rd2 {[%clk 0:00:17]} 52. Rxf2 {[%clk 0:00:08.4]} 52...
Rxd4 {[%clk 0:00:17.6]} 53. Rf6+ {[%clk 0:00:08.9]} 53... Kg5 {[%clk 0:00:18.5]}
54. Ne3 {[%clk 0:00:08.1]} 54... Re4 {[%clk 0:00:18.6]} 55. Rexf7 {[%clk
0:00:08.5]} 55... Rxe3 {[%clk 0:00:18.8]} 56. Rg7+ {[%clk 0:00:09.6]} 56... Kh5
{[%clk 0:00:19.4]} 57. Kg2 {[%clk 0:00:06.3]} 57... Bc6+ {[%clk 0:00:20.1]} 58.
Kf2 {[%clk 0:00:06.8]} 58... Rxe5 {[%clk 0:00:20.6]} 59. Rf8 {[%clk 0:00:07.3]}
59... Rf5+ {[%clk 0:00:21]} 60. Rxf5+ {[%clk 0:00:08.4]} 60... exf5 {[%clk
0:00:22.9]} 61. Rf7 {[%clk 0:00:09.7]} 61... Be4 {[%clk 0:00:24.8]} 62. Re7
{[%clk 0:00:10.3]} 62... Kg6 {[%clk 0:00:26.7]} 63. h4 {[%clk 0:00:11.3]} 63...
Kh5 {[%clk 0:00:27.7]} 64. Rg7 {[%clk 0:00:11.1]} 64... Bd3 {[%clk 0:00:27.9]}
65. Rg5+ {[%clk 0:00:12.1]} 65... Kh6 {[%clk 0:00:28.8]} 66. Ke3 {[%clk
0:00:13.2]} 66... Be4 {[%clk 0:00:29.6]} 67. Kf4 {[%clk 0:00:14.4]} 67... Bb1
{[%clk 0:00:30.3]} 68. Rxf5 {[%clk 0:00:13.6]} 68... Kg6 {[%clk 0:00:31.6]} 69.
Rg5+ {[%clk 0:00:13.9]} 69... Kf6 {[%clk 0:00:32.2]} 70. g4 {[%clk 0:00:14.7]}
70... Bc2 {[%clk 0:00:32.8]} 71. h5 {[%clk 0:00:16]} 71... Bd1 {[%clk
0:00:32.9]} 72. Ra5 {[%clk 0:00:15.8]} 72... Kg7 {[%clk 0:00:33.6]} 73. Kg5
{[%clk 0:00:16.4]} 73... Be2 {[%clk 0:00:32.6]} 74. Ra7+ {[%clk 0:00:17.3]}
74... Kg8 {[%clk 0:00:32.8]} 75. Kf5 {[%clk 0:00:15.5]} 75... Bd3+ {[%clk
0:00:33.2]} 76. Kf6 {[%clk 0:00:16.7]} 76... Bc4 {[%clk 0:00:33.9]} 77. g5
{[%clk 0:00:17.7]} 77... Bb3 {[%clk 0:00:33.2]} 78. g6 {[%clk 0:00:18.2]} 78...
Kh8 {[%clk 0:00:34.5]} 79. h6 {[%clk 0:00:15.7]} 79... Bg8 {[%clk 0:00:35]} 80.
h7 {[%clk 0:00:12.9]} 80... Bf7 {[%clk 0:00:32.7]} 81. Ra8+ {[%clk 0:00:12.3]}
1-0